fUSD/lending_fUSD_20250421
["ID","MTS","AMOUNT","RATE_DAILY","PERIOD"]
[358506312,1745220640448,-500.0,0.00063013,120]
[358506313,1745220640457,-500.0,0.00063013,120]
[358506314,1745220640466,-500.0,0.00063013,120]
[358506315,1745220640475,-514.22434345,0.00063013,120]
[358506316,1745220640484,-500.0,0.00063013,120]
[358506317,1745220640494,-250.0,0.00063013,120]
[358506318,1745220640503,-500.0,0.00063013,120]
[358506319,1745220640511,-500.0,0.00063013,120]
[358506320,1745220640521,-500.0,0.00063013,120]
[358506321,1745220640530,-500.0,0.00063013,120]
[358506322,1745220640540,-518.09002428,0.00063013,120]
[358506323,1745220640550,-530.89504373,0.00063013,120]
[358506324,1745220640559,-500.0,0.00063013,120]
[358506325,1745220640569,-522.23794724,0.00063013,120]
[358506326,1745220640578,-500.0,0.00063013,120]
[358506327,1745220640587,-500.0,0.00063013,120]
[358506328,1745220640597,-554.60362736,0.00063013,120]
[358506329,1745220640607,-500.0,0.00063013,120]
[358506330,1745220640617,-164.02108377,0.00063013,120]
[358506331,1745220640626,-500.0,0.00063013,120]
[358506332,1745220640636,-500.0,0.00063013,120]
[358506333,1745220640646,-210.32957908,0.00063013,120]
[358506334,1745220640655,-500.0,0.00063013,120]
[358506335,1745220640664,-500.0,0.00063013,120]
[358506336,1745220640673,-500.0,0.00063013,120]
[358506337,1745220640683,-500.0,0.00063013,120]
[358506338,1745220640692,-500.0,0.00063013,120]
[358506339,1745220640701,-514.12977325,0.00063013,120]
[358506340,1745220640711,-500.0,0.00063013,120]
[358506341,1745220640720,-521.69765095,0.00063013,120]
[358506342,1745220640730,-519.32851682,0.00063013,120]
[358506343,1745220640740,-540.30237646,0.00063013,120]
[358506344,1745220640749,-429.62605538,0.00063013,120]
[358506345,1745220640759,-500.0,0.00063013,120]
[358506346,1745220640768,-586.10973081,0.00063013,120]
[358506347,1745220640777,-205.85199651,0.00063013,120]
[358506348,1745220640787,-500.0,0.00063013,120]
[358506349,1745220640796,-560.37630026,0.00063013,120]
[358506350,1745220640805,-512.62408005,0.00063013,120]
[358506352,1745220640814,-629.84781352,0.00063013,120]
[358506354,1745220640824,-193.12669195,0.00063013,120]
[358506355,1745220640834,-500.0,0.00063013,120]
[358506356,1745220640843,-500.0,0.00063013,120]
[358506357,1745220640853,-500.0,0.00063013,120]
[358506358,1745220640863,-500.0,0.00063013,120]
[358506359,1745220640873,-543.85444649,0.00063013,120]
[358506360,1745220640882,-500.0,0.00063013,120]
[358506361,1745220640892,-625.50746254,0.00063013,120]
[358506362,1745220640901,-544.79583879,0.00063013,120]
[358506363,1745220640910,-500.0,0.00063013,120]
[358506364,1745220640920,-500.0,0.00063013,120]
[358506365,1745220640929,-523.67123264,0.00063013,120]
[358506366,1745220640939,-511.33194378,0.00063013,120]
[358506367,1745220640948,-551.57591507,0.00063013,120]
[358506368,1745220640957,-549.39229299,0.00063013,120]
[358506369,1745220640967,-500.0,0.00063013,120]
[358506370,1745220640976,-500.0,0.00063013,120]
[358506371,1745220640986,-513.00526959,0.00063013,120]
[358506372,1745220640995,-544.42752104,0.00063013,120]
[358506373,1745220641004,-500.0,0.00063013,120]
[358506374,1745220641013,-512.90726598,0.00063013,120]
[358506375,1745220641023,-369.41525961,0.00063013,120]
[358506376,1745220641032,-528.0446655,0.00063013,120]
[358506377,1745220641041,-500.0,0.00063013,2]
[358506378,1745220641050,-500.0,0.00063013,120]
[358506379,1745220641060,-501.62396758,0.00063013,2]
[358506380,1745220641070,-500.0,0.00063013,120]
[358506381,1745220641080,-500.0,0.00063013,2]
[358506382,1745220641089,-541.94958479,0.00063013,120]
[358506383,1745220641098,-508.29858572,0.00063013,2]
[358506384,1745220641107,-500.0,0.00063013,120]
[358506385,1745220641116,-500.0,0.00063013,120]
[358506386,1745220641129,-542.53878016,0.00063013,120]
[358506387,1745220641138,-500.0,0.00063013,120]
[358506388,1745220641147,-500.0,0.00063013,120]
[358506389,1745220641156,-500.0,0.00063013,2]
[358506390,1745220641167,-500.0,0.00063013,120]
[358506391,1745220641176,-500.0,0.00063013,120]
[358506392,1745220641187,-500.0,0.00063013,120]
[358506393,1745220641198,-502.30352225,0.00063013,120]
[358506394,1745220641208,-500.0,0.00063013,120]
[358506395,1745220641217,-500.0,0.00063013,120]
[358506396,1745220641226,-533.68233951,0.00063013,120]
[358506397,1745220641235,-500.0,0.00063013,120]
[358506398,1745220641243,-500.0,0.00063013,120]
[358506399,1745220641252,-515.92703972,0.00063013,120]
[358506400,1745220641262,-500.0,0.00063013,120]
[358506401,1745220641270,-500.0,0.00063013,120]
[358506402,1745220641280,-548.37548356,0.00063013,120]
[358506403,1745220641290,-500.0,0.00063013,120]
[358506404,1745220641299,-500.0,0.00063013,120]
[358506405,1745220641307,-500.0,0.00063013,120]
[358506406,1745220641316,-500.0,0.00063013,120]
[358506407,1745220641325,-334.80534902,0.00063013,120]
[358506408,1745220641334,-531.79381831,0.00063013,120]
[358506409,1745220641343,-500.0,0.00063013,120]
[358506410,1745220641352,-500.0,0.00063013,120]
[358506411,1745220641361,-646.47631652,0.00063013,120]
[358506412,1745220641370,-195.45733755,0.00063013,120]
[358506413,1745220641379,-500.0,0.00063013,120]
[358506414,1745220641389,-258.88411518,0.00063013,120]
[358506415,1745220641398,-500.0,0.00063013,30]
[358506416,1745220641407,-500.0,0.00063013,120]
[358506417,1745220641416,-500.0,0.00063013,120]
[358506418,1745220641425,-1500.0,0.00063013,120]
[358506419,1745220641434,-500.0,0.00063013,120]
[358506420,1745220641443,-500.0,0.00063013,120]
[358506421,1745220641452,-500.0,0.00063013,120]
[358506422,1745220641461,-500.0,0.00063013,120]
[358506423,1745220641471,-500.0,0.00063013,120]
[358506424,1745220641480,-500.0,0.00063013,120]
[358506425,1745220641489,-500.0,0.00063013,120]
[358506426,1745220641498,-500.0,0.00063013,120]
[358506427,1745220641507,-500.0,0.00063013,120]
[358506428,1745220641516,-170.73244895,0.00063013,120]
[358506429,1745220641525,-500.0,0.00063013,120]
[358506430,1745220641534,-500.0,0.00063013,120]
[358506431,1745220641543,-500.0,0.00063013,120]
[358506432,1745220641552,-500.0,0.00063013,120]
[358506433,1745220641561,-500.0,0.00063013,120]
[358506434,1745220641571,-517.48407692,0.00063013,120]
[358506435,1745220641580,-500.0,0.00063013,120]
[358506436,1745220641589,-500.0,0.00063013,120]
[358506437,1745220641598,-523.54175591,0.00063013,120]
[358506438,1745220641608,-500.0,0.00063013,120]
[358506439,1745220641619,-500.0,0.00063013,120]
[358506440,1745220641631,-500.0,0.00063013,120]
[358506441,1745220641642,-500.0,0.00063013,120]
[358506442,1745220641651,-522.94760242,0.00063013,120]
[358506443,1745220641660,-529.17004573,0.00063013,120]
[358506444,1745220641669,-528.50294025,0.00063013,120]
[358506445,1745220641678,-697.87,0.00063013,120]
[358506446,1745220641687,-500.0,0.00063013,120]
[358506447,1745220641696,-270.19695642,0.00063013,120]
[358506448,1745220641705,-500.0,0.00063013,120]
[358506449,1745220641714,-500.0,0.00063013,120]
[358506450,1745220641723,-500.0,0.00063013,120]
[358506451,1745220641732,-500.0,0.00063013,120]
[358506452,1745220641741,-500.0,0.00063013,120]
[358506453,1745220641750,-999.0,0.00063013,120]
[358506454,1745220641760,-574.47228221,0.00063013,120]
[358506455,1745220641769,-500.0,0.00063013,120]
[358506456,1745220641778,-500.0,0.00063013,120]
[358506457,1745220641788,-500.0,0.00063013,120]
[358506458,1745220641797,-500.0,0.00063013,120]
[358506459,1745220641806,-500.0,0.00063013,120]
[358506460,1745220641815,-552.17207215,0.00063013,120]
[358506461,1745220641824,-500.0,0.00063013,120]
[358506462,1745220641833,-500.0,0.00063013,120]
[358506463,1745220641842,-570.41510949,0.00063013,120]
[358506464,1745220641851,-500.0,0.00063013,120]
[358506465,1745220641860,-537.17308493,0.00063013,120]
[358506466,1745220641869,-500.0,0.00063013,120]
[358506467,1745220641878,-500.0,0.00063013,120]
[358506468,1745220641887,-576.50626452,0.00063013,120]
[358506469,1745220641897,-561.14074345,0.00063013,120]
[358506470,1745220641906,-500.0,0.00063013,120]
[358506471,1745220641915,-500.0,0.00063013,120]
[358506472,1745220641924,-500.0,0.00063013,120]
[358506473,1745220641934,-500.0,0.00063013,120]
[358506474,1745220641943,-500.0,0.00063013,120]
[358506475,1745220641952,-500.0,0.00063013,120]
[358506476,1745220641961,-500.0,0.00063013,120]
[358506477,1745220641971,-275.06719502,0.00063013,120]
[358506478,1745220641980,-500.0,0.00063013,120]
[358506479,1745220641990,-500.0,0.00063013,120]
[358506480,1745220641999,-500.0,0.00063013,120]
[358506481,1745220642008,-500.0,0.00063013,120]
[358506482,1745220642018,-500.0,0.00063013,120]
[358506483,1745220642027,-500.0,0.00063013,120]
[358506484,1745220642036,-500.0,0.00063013,120]
[358506485,1745220642046,-502.3897624,0.00063013,120]
[358506486,1745220642056,-500.0,0.00063013,120]
[358506487,1745220642065,-500.0,0.00063013,120]
[358506488,1745220642074,-516.33079572,0.00063013,120]
[358506489,1745220642084,-500.0,0.00063013,120]
[358506490,1745220642093,-500.0,0.00063013,120]
[358506491,1745220642103,-500.0,0.00063013,120]
[358506492,1745220642112,-500.0,0.00063013,120]
[358506493,1745220642123,-500.0,0.00063013,120]
[358506494,1745220642134,-500.0,0.00063013,120]
[358506495,1745220642143,-500.0,0.00063013,120]
[358506496,1745220642153,-500.0,0.00063013,120]
[358506497,1745220642163,-500.0,0.00063013,120]
[358506498,1745220642172,-533.65285747,0.00063013,120]
[358506499,1745220642182,-539.17818239,0.00063013,120]
[358506500,1745220642191,-496.31353602,0.00063013,120]
[358506501,1745220642201,-535.34739309,0.00063013,120]
[358506502,1745220642211,-508.17724565,0.00063013,30]
[358506503,1745220642220,-500.0,0.00063013,120]
[358506504,1745220642230,-500.0,0.00063013,120]
[358506505,1745220642239,-539.75018618,0.00063013,120]
[358506506,1745220642249,-500.0,0.00063013,120]
[358506507,1745220642257,-500.0,0.00063013,120]
[358506508,1745220642267,-500.0,0.00063013,120]
[358506509,1745220642276,-500.0,0.00063013,120]
[358506510,1745220642286,-500.0,0.00063013,120]
[358506511,1745220642295,-500.0,0.00063013,120]
[358506512,1745220642304,-500.0,0.00063013,120]
[358506513,1745220642313,-500.0,0.00063013,120]
[358506514,1745220642323,-500.0,0.00063013,120]
[358506515,1745220642332,-500.0,0.00063013,120]
[358506516,1745220642342,-507.21837456,0.00063013,120]
[358506517,1745220642351,-210.97333691,0.00063013,120]
[358506518,1745220642360,-500.0,0.00063013,120]
[358506519,1745220642370,-500.0,0.00063013,120]
[358506520,1745220642379,-500.0,0.00063013,120]
[358506521,1745220642389,-588.5342434,0.00063013,120]
[358506522,1745220642398,-500.0,0.00063013,120]
[358506523,1745220642518,-500.0,0.00063013,120]
[358506524,1745220642530,-500.0,0.00063013,120]
[358506525,1745220642539,-546.73523348,0.00063013,120]
[358506526,1745220642549,-500.0,0.00063013,120]
[358506527,1745220642558,-500.0,0.00063013,120]
[358506528,1745220642567,-500.0,0.00063013,120]
[358506529,1745220642577,-538.49109632,0.00063013,120]
[358506530,1745220642587,-500.0,0.00063013,120]
[358506531,1745220642597,-525.31475404,0.00063013,120]
[358506532,1745220642607,-500.0,0.00063013,120]
[358506533,1745220642617,-500.0,0.00063013,120]
[358506534,1745220642627,-500.0,0.00063013,120]
[358506535,1745220642637,-500.0,0.00063013,120]
[358506537,1745220642646,-500.0,0.00063013,120]
[358506539,1745220642656,-500.0,0.00063013,120]
[358506542,1745220642666,-500.0,0.00063013,120]
[358506543,1745220642675,-500.0,0.00063013,120]
[358506544,1745220642685,-500.0,0.00063013,120]
[358506545,1745220642694,-566.30084486,0.00063013,120]
[358506546,1745220642703,-500.0,0.00063013,120]
[358506547,1745220642713,-500.0,0.00063013,120]
[358506548,1745220642722,-500.0,0.00063013,120]
[358506549,1745220642732,-500.0,0.00063013,20]
[358506550,1745220642741,-500.0,0.00063013,120]
[358506551,1745220642751,-500.0,0.00063013,120]
[358506552,1745220642760,-511.82518281,0.00063013,120]
[358506554,1745220642769,-602.57910325,0.00063013,120]
[358506555,1745220642778,-500.0,0.00063013,120]
[358506556,1745220642788,-538.0593284,0.00063013,120]
[358506557,1745220642798,-500.0,0.00063013,120]
[358506559,1745220642808,-500.0,0.00063013,10]
[358506560,1745220642817,-500.0,0.00063013,120]
[358506562,1745220642826,-500.0,0.00063013,120]
[358506563,1745220642836,-500.0,0.00063013,120]
[358506564,1745220642845,-500.0,0.00063013,120]
[358506565,1745220642854,-500.0,0.00063013,120]
[358506566,1745220642864,-500.0,0.00063013,120]
[358506567,1745220642873,-500.0,0.00063013,120]
[358506568,1745220642883,-500.0,0.00063013,120]
[358506569,1745220642892,-515.3274359,0.00063013,120]
[358506570,1745220642902,-500.0,0.00063013,120]
[358506571,1745220642911,-500.0,0.00063013,120]
[358506572,1745220642921,-500.0,0.00063013,120]
[358506573,1745220642931,-500.0,0.00063013,120]
[358506574,1745220642940,-500.0,0.00063013,120]
[358506575,1745220642950,-500.0,0.00063013,120]
[358506577,1745220642959,-500.0,0.00063013,120]
[358506579,1745220642969,-500.0,0.00063013,120]
[358506580,1745220642979,-500.0,0.00063013,120]
[358506581,1745220642988,-500.0,0.00063013,120]
[358506582,1745220642998,-522.14069282,0.00063013,120]
[358506583,1745220643008,-509.67213527,0.00063013,120]
[358506584,1745220643018,-500.0,0.00063013,120]
[358506585,1745220643028,-500.0,0.00063013,120]
[358506586,1745220643037,-510.48658596,0.00063013,120]
[358506587,1745220643047,-203.46058736,0.00063013,120]
[358506588,1745220643056,-500.0,0.00063013,120]
[358506589,1745220643066,-500.0,0.00063013,12]
[358506590,1745220643075,-500.0,0.00063013,120]
[358506591,1745220643085,-500.0,0.00063013,120]
[358506592,1745220643094,-500.0,0.00063013,120]
[358506593,1745220643103,-508.19358261,0.00063013,120]
[358506594,1745220643113,-500.0,0.00063013,120]
[358506595,1745220643124,-551.11582393,0.00063013,120]
[358506596,1745220643134,-431.87457738,0.00063013,120]
[358506597,1745220643143,-547.09804411,0.00063013,120]
[358506598,1745220643153,-500.0,0.00063013,120]
[358506599,1745220643162,-500.0,0.00063013,120]
[358506600,1745220643171,-239.8799124,0.00063013,120]
[358506601,1745220643181,-500.0,0.00063013,120]
[358506602,1745220643190,-500.0,0.00063013,14]
[358506603,1745220643199,-517.96380861,0.00063013,120]
[358506604,1745220643208,-500.0,0.00063013,120]
[358506605,1745220643217,-500.0,0.00063013,120]
[358506606,1745220643226,-500.0,0.00063013,120]
[358506607,1745220643235,-500.0,0.00063013,120]
[358506608,1745220643244,-515.02709183,0.00063013,120]
[358506609,1745220643253,-500.0,0.00063013,120]
[358506610,1745220643263,-521.54529197,0.00063013,120]
[358506611,1745220643272,-500.0,0.00063013,120]
[358506612,1745220643281,-558.8831218,0.00063013,120]
[358506613,1745220643290,-512.51392121,0.00063013,120]
[358506614,1745220643300,-500.0,0.00063013,120]
[358506615,1745220643309,-537.79886844,0.00063013,120]
[358506616,1745220643318,-500.0,0.00063013,120]
[358506617,1745220643328,-500.0,0.00063013,120]
[358506618,1745220643337,-500.0,0.00063013,120]
[358506619,1745220643346,-502.41908503,0.00063013,120]
[358506620,1745220643355,-513.050139,0.00063013,120]
[358506621,1745220643365,-548.26488094,0.00063013,120]
[358506622,1745220643374,-500.0,0.00063013,120]
[358506623,1745220643384,-500.0,0.00063013,120]
[358506624,1745220643393,-500.0,0.00063013,120]
[358506625,1745220643402,-500.0,0.00063013,120]
[358506626,1745220643411,-528.94503763,0.00063013,120]
[358506627,1745220643421,-499.50801198,0.00063013,120]
[358506628,1745220643431,-500.0,0.00063013,120]
[358506629,1745220643440,-500.0,0.00063013,120]
[358506630,1745220643449,-640.8099035,0.00063013,120]
[358506632,1745220643459,-500.0,0.00063013,120]
[358506634,1745220643468,-500.0,0.00063013,30]
[358506636,1745220643478,-500.0,0.00063013,120]
[358506638,1745220643488,-184.9874649,0.00063013,120]
[358506639,1745220643498,-508.52585241,0.00063013,120]
[358506642,1745220643507,-208.18040093,0.00063013,120]
[358506644,1745220643517,-506.8656913,0.00063013,120]
[358506646,1745220643526,-550.48563296,0.00063013,120]
[358506647,1745220643535,-500.0,0.00063013,120]
[358506648,1745220643544,-500.0,0.00063013,120]
[358506649,1745220643553,-505.4096399,0.00063013,120]
[358506650,1745220643562,-449.72,0.00063013,120]
[358506651,1745220643572,-500.0,0.00063013,120]
[358506652,1745220643580,-500.0,0.00063013,120]
[358506653,1745220643590,-500.0,0.00063013,120]
[358506654,1745220643599,-500.0,0.00063013,120]
[358506655,1745220643608,-500.0,0.00063013,120]
[358506656,1745220643617,-500.0,0.00063013,120]
[358506657,1745220643626,-500.0,0.00063013,120]
[358506658,1745220643635,-527.53391386,0.00063013,120]
[358506659,1745220643645,-500.0,0.00063013,120]
[358506660,1745220643654,-500.0,0.00063013,120]
[358506661,1745220643663,-1364.83,0.00063013,120]
[358506662,1745220643672,-1364.83,0.00063013,120]
[358506663,1745220643681,-1364.83,0.00063013,120]
[358506664,1745220643691,-500.0,0.00063013,120]
[358506665,1745220643700,-500.0,0.00063013,120]
[358506666,1745220643709,-500.0,0.00063013,120]
[358506667,1745220643718,-500.0,0.00063013,120]
[358506668,1745220643727,-538.24802769,0.00063013,120]
[358506669,1745220643736,-526.93,0.00063013,120]
[358506670,1745220643745,-500.0,0.00063013,120]
[358506671,1745220643754,-500.0,0.00063013,120]
[358506672,1745220643763,-500.0,0.00063013,120]
[358506673,1745220643772,-500.0,0.00063013,120]
[358506674,1745220643782,-500.0,0.00063013,120]
[358506675,1745220643791,-500.0,0.00063013,120]
[358506676,1745220643800,-500.0,0.00063013,120]
[358506677,1745220643810,-515.90655005,0.00063013,120]
[358506678,1745220643819,-500.0,0.00063013,120]
[358506679,1745220643828,-500.0,0.00063013,120]
[358506680,1745220643838,-542.87896645,0.00063013,120]
[358506681,1745220643849,-500.0,0.00063013,120]
[358506682,1745220643860,-500.0,0.00063013,120]
[358506683,1745220643869,-506.11782053,0.00063013,120]
[358506684,1745220643878,-502.57506222,0.00063013,120]
[358506685,1745220643888,-500.0,0.00063013,120]
[358506686,1745220643897,-505.09588526,0.00063013,120]
[358506687,1745220643906,-500.0,0.00063013,120]
[358506688,1745220643915,-500.0,0.00063013,120]
[358506689,1745220643926,-500.0,0.00063013,120]
[358506690,1745220643936,-500.0,0.00063013,120]
[358506691,1745220643946,-500.0,0.00063013,120]
[358506692,1745220643955,-500.0,0.00063013,120]
[358506693,1745220643965,-500.0,0.00063013,120]
[358506694,1745220643974,-500.0,0.00063013,120]
[358506695,1745220643983,-500.0,0.00063013,120]
[358506696,1745220643992,-500.0,0.00063013,120]
[358506697,1745220644001,-500.0,0.00063013,120]
[358506698,1745220644010,-500.0,0.00063013,120]
[358506699,1745220644020,-502.04150899,0.00063013,120]
[358506700,1745220644029,-500.0,0.00063013,120]
[358506701,1745220644039,-574.76434348,0.00063013,120]
[358506702,1745220644048,-500.0,0.00063013,120]
[358506703,1745220644060,-500.0,0.00063013,120]
[358506704,1745220644070,-570.0768427,0.00063013,120]
[358506705,1745220644080,-500.0,0.00063013,120]
[358506706,1745220644089,-532.26604069,0.00063013,120]
[358506707,1745220644098,-500.0,0.00063013,120]
[358506708,1745220644107,-500.0,0.00063013,120]
[358506709,1745220644117,-500.0,0.00063013,120]
[358506710,1745220644130,-500.0,0.00063013,120]
[358506711,1745220644139,-500.0,0.00063013,120]
[358506712,1745220644149,-637.2,0.00063013,120]
[358506713,1745220644158,-500.0,0.00063013,120]
[358506714,1745220644167,-500.0,0.00063013,120]
[358506715,1745220644176,-1041.44,0.00063013,120]
[358506716,1745220644184,-500.0,0.00063013,120]
[358506717,1745220644195,-506.57271024,0.00063013,120]
[358506718,1745220644207,-500.0,0.00063013,120]
[358506719,1745220644217,-500.0,0.00063013,120]
[358506720,1745220644228,-500.0,0.00063013,120]
[358506721,1745220644238,-500.0,0.00063013,120]
[358506722,1745220644247,-169.70041414,0.00063013,58]
[358506723,1745220644256,-500.0,0.00063013,120]
[358506724,1745220644265,-500.0,0.00063013,120]
[358506725,1745220644274,-500.0,0.00063013,120]
[358506726,1745220644284,-500.0,0.00063013,120]
[358506727,1745220644293,-500.0,0.00063013,120]
[358506728,1745220644302,-500.0,0.00063013,120]
[358506729,1745220644311,-500.0,0.00063013,120]
[358506730,1745220644320,-500.0,0.00063013,120]
[358506731,1745220644329,-500.0,0.00063013,120]
[358506732,1745220644339,-524.86949902,0.00063013,120]
[358506733,1745220644348,-523.38480097,0.00063013,120]
[358506734,1745220644357,-500.0,0.00063013,120]
[358506735,1745220644366,-500.0,0.00063013,120]
[358506736,1745220644375,-500.0,0.00063013,120]
[358506737,1745220644384,-321.77997201,0.00063013,120]
[358506738,1745220644395,-500.0,0.00063013,8]
[358506739,1745220644404,-500.0,0.00063013,120]
[358506740,1745220644416,-500.0,0.00063013,120]
[358506741,1745220644425,-500.0,0.00063013,120]
[358506742,1745220644434,-599.74,0.00063013,120]
[358506743,1745220644443,-500.0,0.00063013,120]
[358506744,1745220644454,-500.0,0.00063013,120]
[358506745,1745220644463,-500.0,0.00063013,120]
[358506746,1745220644474,-598.26690595,0.00063013,120]
[358506747,1745220644483,-500.0,0.00063013,120]
[358506748,1745220644492,-500.0,0.00063013,120]
[358506749,1745220644502,-500.0,0.00063013,120]
[358506750,1745220644511,-500.0,0.00063013,120]
[358506751,1745220644521,-500.0,0.00063013,120]
[358506752,1745220644530,-483.61157394,0.00063013,120]
[358506753,1745220644539,-500.0,0.00063013,120]
[358506754,1745220644548,-500.0,0.00063013,120]
[358506755,1745220644557,-411.2321765,0.00063013,120]
[358506756,1745220644568,-581.20786552,0.00063013,120]
[358506757,1745220644577,-500.0,0.00063013,120]
[358506758,1745220644586,-500.0,0.00063013,120]
[358506759,1745220644595,-500.0,0.00063013,120]
[358506760,1745220644604,-533.26390759,0.00063013,120]
[358506761,1745220644613,-545.20865708,0.00063013,120]
[358506762,1745220644622,-963.63,0.00063013,2]
[358506763,1745220644631,-500.0,0.00063013,120]
[358506764,1745220644641,-500.0,0.00063013,120]
[358506765,1745220644650,-523.30995052,0.00063013,120]
[358506766,1745220644659,-500.0,0.00063013,120]
[358506767,1745220644668,-500.0,0.00063013,120]
[358506768,1745220644677,-187.32987917,0.00063013,120]
[358506769,1745220644687,-500.0,0.00063013,120]
[358506770,1745220644696,-500.0,0.00063013,120]
[358506771,1745220644705,-500.0,0.00063013,120]
[358506772,1745220644714,-500.0,0.00063013,120]
[358506773,1745220644723,-621.39169438,0.00063013,120]
[358506774,1745220644732,-341.0846403,0.00063013,120]
[358506775,1745220644742,-702.45,0.00063013,120]
[358506776,1745220644751,-500.0,0.00063013,120]
[358506777,1745220644762,-500.0,0.00063013,120]
[358506778,1745220644772,-500.0,0.00063013,120]
[358506779,1745220644781,-551.29144262,0.00063013,120]
[358506780,1745220644791,-500.0,0.00063013,120]
[358506781,1745220644800,-500.0,0.00063013,120]
[358506782,1745220644809,-500.0,0.00063013,120]
[358506783,1745220644818,-267.33566992,0.00063013,120]
[358506784,1745220644827,-500.0,0.00063013,120]
[358506785,1745220644836,-500.0,0.00063013,120]
[358506786,1745220644845,-500.0,0.00063013,120]
[358506787,1745220644854,-627.4494026,0.00063013,120]
[358506788,1745220644863,-500.0,0.00063013,120]
[358506789,1745220644900,-500.0,0.00063013,120]
[358506790,1745220644910,-500.0,0.00063013,120]
[358506791,1745220644920,-500.0,0.00063013,120]
[358506792,1745220644929,-500.0,0.00063013,120]
[358506793,1745220644938,-500.0,0.00063013,120]
[358506794,1745220644947,-500.0,0.00063013,120]
[358506795,1745220644957,-500.0,0.00063013,120]
[358506796,1745220644966,-500.0,0.00063013,120]
[358506797,1745220644976,-500.0,0.00063013,120]
[358506798,1745220644985,-500.0,0.00063013,120]
[358506799,1745220644994,-500.0,0.00063013,120]
[358506800,1745220645003,-500.0,0.00063013,120]
[358506801,1745220645013,-500.0,0.00063013,120]
[358506802,1745220645022,-500.0,0.00063013,120]
[358506803,1745220645032,-500.0,0.00063013,120]
[358506804,1745220645041,-4550.52,0.00063013,120]
[358506805,1745220645051,-4202.91,0.00063013,7]
[358506806,1745220645060,-500.0,0.00063013,120]
[358506807,1745220645069,-500.0,0.00063013,120]
[358506808,1745220645079,-500.0,0.00063013,120]
[358506809,1745220645088,-348.86394823,0.00063013,120]
[358506810,1745220645097,-524.19774049,0.00063013,120]
[358506811,1745220645106,-500.0,0.00063013,120]
[358506812,1745220645116,-517.95427251,0.00063013,120]
[358506813,1745220645129,-503.26592607,0.00063014,15]
[358506814,1745220645140,-500.0,0.00063014,120]
[358506815,1745220645150,-500.0,0.00063014,120]
[358506816,1745220645159,-291.48920364,0.00063014,120]
[358506817,1745220645171,-500.0,0.00063014,120]
[358506818,1745220645180,-500.0,0.00063014,120]
[358506819,1745220645189,-500.0,0.00063014,120]
[358506820,1745220645198,-500.0,0.00063014,120]
[358506821,1745220645208,-500.0,0.00063014,120]
[358506822,1745220645217,-500.0,0.00063014,120]
[358506823,1745220645226,-500.0,0.00063014,120]
[358506824,1745220645235,-500.0,0.00063073,15]
[358506825,1745220645244,-500.0,0.00063073,4]
[358506826,1745220645253,-644.88590681,0.00063453,15]
[358506827,1745220645262,-166.66,0.00063481,2]
[358506828,1745220645270,-1000.0,0.00063532,120]
[358506829,1745220645279,-1364.83,0.00063541,120]
[358506830,1745220645287,-395.64281135,0.00063561,120]